[Event "SRB-chT Women 1st League 2019"]
[Site "Subotica"]
[Date "2019.08.23"]
[Round "2"]
[White "Bulmaga, Irina"]
[Black "Atalik, Ekaterina"]
[Result "1/2-1/2"]
[ECO "C54"]
[WhiteElo "2444"]
[BlackElo "2456"]
[Annotator "ChessBase"]
[PlyCount "54"]
[EventDate "2019.08.23"]
[EventType "team-tourn"]
[EventCountry "SRB"]
[SourceTitle "playchess.com"]
[Source "ChessBase"]
[SourceQuality "1"]
[TimeControl "40/5400+30:1800+30"]

1. e4 {[%emt 0:00:30]} e5 {[%emt 0:00:30]} 2. Nf3 {[%emt 0:00:00]} Nc6 {[%emt 0:00:00]} 3. Bc4 {[%emt 0:07:00]} Bc5 {[%emt 0:06:00]} 4. c3 {[%emt 0:00:30]} Nf6 {[%emt 0:00:30]} 5. d4 {[%emt 0:00:30]} exd4 {[%emt 0:00:30]} 6. e5 {[%emt 0:00:30]} d5 {[%emt 0:00:30]} 7. Bb5 {[%emt 0:00:30]} Ne4 {[%emt 0:00:30]} 8. cxd4 {[%emt 0:01:30]} Bb6 {[%emt 0:00:30]} 9. Nc3 {[%emt 0:00:30]} Bg4 {[%emt 0:00:30]} 10. Be3 {[%emt 0:00:30]} O-O {[%emt 0:00:30]} 11. h3 {[%emt 0:00:30]} Bh5 {[%emt 0:00:30]} 12. Qc2 {[%emt 0:00:30]} Bg6 {[%emt 0:00:30]} 13. Qb3 {[%emt 0:00:30]} Ne7 {[%emt 0:00:30]} 14. O-O {[%emt 0:00:30]} c6 {[%emt 0:00:30]} 15. Bd3 {[%emt 0:00:30]} Nd2 {[%emt 0:00:30]} 16. Nxd2 {[%emt 0:00:30]} Bxd3 {[%emt 0:00:30]} 17. Rfe1 {[%emt 0:00:30]} Bg6 {[%emt 0:01:30]} 18. Na4 {[%emt 0:01:30]} Nf5 {[%emt 0:06:30]} 19. Nf3 {[%emt 0:00:30]} Ba5 {[%emt 0:03:30]} 20. Re2 {[%emt 0:11:30]} Nxe3 {[%emt 0:05:30]} 21. Qxe3 {[%emt 0:05:30]} Qe7 {[%emt 0:03:30]} 22. Nc5 {[%emt 0:03:30]} Rfe8 {[%emt 0:01:30]} 23. a3 {[%emt 0:07:30]} Bd8 {[%emt 0:05:30]} 24. Rc1 {[%emt 0:06:30]} Rc8 {[%emt 0:02:30]} 25. Nd3 {[%emt 0:07:30]} Bb6 {[%emt 0:09:30]} 26. Nc5 {[%emt 0:15:30]} Bd8 {[%emt 0:00:30]} 27. Nd3 {[%emt 0:02:30]} Bb6 1/2-1/2

[Event "SRB-chT Women 1st League 2019"]
[Site "Subotica"]
[Date "2019.08.23"]
[Round "2"]
[White "Batsiashvili, Nino"]
[Black "Strutinskaia, Galina"]
[Result "1-0"]
[ECO "D43"]
[WhiteElo "2416"]
[BlackElo "2205"]
[Annotator "NA"]
[PlyCount "63"]
[EventDate "2019.08.23"]
[EventType "team-tourn"]
[EventCountry "SRB"]
[SourceTitle "playchess.com"]
[Source "ChessBase"]
[SourceQuality "1"]
[TimeControl "40/5400+30:1800+30"]

1. c4 {[%emt 0:00:30]} e6 {[%emt 0:00:30]} 2. Nc3 {[%emt 0:00:00]} d5 {[%emt 0:00:00]} 3. d4 {[%emt 0:00:00]} Nf6 {[%emt 0:00:00]} 4. Nf3 {[%emt 0:00:00]} c6 {[%emt 0:00:30]} 5. Bg5 {[%emt 0:01:00]} h6 {[%emt 0:00:30]} 6. Bxf6 {[%emt 0:01:30]} Qxf6 {[%emt 0:00:00]} 7. e3 {[%emt 0:00:00]} Nd7 {[%emt 0:02:00]} 8. Bd3 {[%emt 0:01:00]} g6 {[%emt 0:00:30]} 9. e4 {[%emt 0:00:30]} dxc4 {[%emt 0:01:30]} 10. Bxc4 {[%emt 0:00:30]} Bg7 {[%emt 0:02:30]} 11. O-O {[%emt 0:02:30]} O-O {[%emt 0:00:30]} 12. Qe2 {[%emt 0:02:30]} e5 {[%emt 0:06:30]} 13. dxe5 {[%emt 0:06:30]} Nxe5 {[%emt 0:00:00]} 14. Nxe5 {[%emt 0:00:30]} Qxe5 {[%emt 0:00:00]} 15. f4 {[%emt 0:00:30]} Qc5+ {[%emt 0:04:30]} 16. Kh1 {[%emt 0:00:30]} b5 {[%emt 0:00:30]} 17. Bb3 {[%emt 0:01:30]} b4 {[%emt 0:01:30]} 18. Na4 {[%emt 0:02:30]} Qa5 {[%emt 0:04:30]} 19. Rfc1 {[%emt 0:04:30]} Ba6 {[%emt 0:01:30]} 20. Qg4 {[%emt 0:01:30]} Bb5 {[%emt 0:00:30]} 21. Nc5 {[%emt 0:00:30]} Kh7 {[%emt 0:02:30]} 22. f5 {[%emt 0:12:30]} Qc7 {[%emt 0:06:30]} 23. Rd1 {[%emt 0:09:30]} Qe5 {[%emt 0:06:30]} 24. Nd7 {[%emt 0:00:30]} Qxb2 {[%emt 0:00:30]} 25. Bxf7 {[%emt 0:03:30]} gxf5 {[%emt 0:09:30]} 26. Qg6+ {[%emt 0:02:30]} Kh8 {[%emt 0:00:00]} 27. Rab1 {[%emt 0:01:30]} Qc3 {[%emt 0:01:00]} 28. exf5 {[%emt 0:01:30]} Rxf7 {[%emt 0:01:30]} 29. Qxf7 {[%emt 0:00:30]} Bc4 {[%emt 0:00:30]} 30. Qg6 {[%emt 0:02:30]} Bd5 {[%emt 0:00:30]} 31. f6 {[%emt 0:01:30]} Rg8 {[%emt 0:00:30]} 32. fxg7+ {[%emt 0:00:30]} 1-0

[Event "SRB-chT Women 1st League 2019"]
[Site "Subotica"]
[Date "2019.08.23"]
[Round "2"]
[White "Bojkovic, Natasa"]
[Black "Rapport, Jovana"]
[Result "1/2-1/2"]
[ECO "B15"]
[WhiteElo "2374"]
[BlackElo "2370"]
[Annotator "NA"]
[PlyCount "56"]
[EventDate "2019.08.23"]
[EventType "team-tourn"]
[EventCountry "SRB"]
[SourceTitle "playchess.com"]
[Source "ChessBase"]
[SourceQuality "1"]
[TimeControl "40/5400+30:1800+30"]

1. e4 {[%emt 0:00:30]} c6 {[%emt 0:00:30]} 2. d4 {[%emt 0:00:00]} d5 {[%emt 0:00:00]} 3. Nd2 {[%emt 0:00:00]} dxe4 {[%emt 0:00:00]} 4. Nxe4 {[%emt 0:00:30]} Nf6 {[%emt 0:00:30]} 5. Nxf6+ {[%emt 0:00:30]} exf6 {[%emt 0:00:00]} 6. Bc4 {[%emt 0:00:30]} Qe7+ {[%emt 0:02:00]} 7. Qe2 {[%emt 0:01:30]} Qxe2+ {[%emt 0:06:30]} 8. Nxe2 {[%emt 0:00:30]} Be6 {[%emt 0:00:00]} 9. Bd3 {[%emt 0:12:30]} Bd6 {[%emt 0:02:00]} 10. Bf4 {[%emt 0:00:30]} Bxf4 {[%emt 0:04:30]} 11. Nxf4 {[%emt 0:00:30]} O-O {[%emt 0:00:30]} 12. O-O-O {[%emt 0:02:30]} Re8 {[%emt 0:05:30]} 13. Rhe1 {[%emt 0:03:30]} Nd7 {[%emt 0:02:30]} 14. Re3 {[%emt 0:11:30]} Nf8 {[%emt 0:01:30]} 15. Rde1 {[%emt 0:02:30]} Red8 {[%emt 0:17:30]} 16. Nxe6 {[%emt 0:01:30]} Nxe6 {[%emt 0:00:30]} 17. c3 {[%emt 0:00:30]} Nf4 {[%emt 0:00:30]} 18. Bf1 {[%emt 0:00:30]} Kf8 {[%emt 0:03:30]} 19. g3 {[%emt 0:01:30]} Nd5 {[%emt 0:00:00]} 20. R3e2 {[%emt 0:01:30]} Re8 {[%emt 0:01:00]} 21. Bg2 {[%emt 0:02:30]} Nc7 {[%emt 0:00:00]} 22. Rxe8+ {[%emt 0:03:30]} Rxe8 {[%emt 0:00:00]} 23. Rxe8+ {[%emt 0:00:30]} Kxe8 {[%emt 0:00:30]} 24. Kd2 {[%emt 0:00:30]} Kd7 {[%emt 0:02:30]} 25. Kd3 {[%emt 0:07:30]} g6 {[%emt 0:00:30]} 26. a4 {[%emt 0:05:30]} f5 {[%emt 0:01:30]} 27. f4 {[%emt 0:04:30]} h5 {[%emt 0:01:30]} 28. a5 {[%emt 0:18:08]} Kd6 1/2-1/2

[Event "SRB-chT Women 1st League 2019"]
[Site "Subotica"]
[Date "2019.08.23"]
[Round "2"]
[White "Chelushkina, Irina"]
[Black "Djukic, Sandra"]
[Result "1/2-1/2"]
[ECO "C00"]
[WhiteElo "2275"]
[BlackElo "2179"]
[Annotator "NA"]
[PlyCount "95"]
[EventDate "2019.08.23"]
[EventType "team-tourn"]
[EventCountry "SRB"]
[SourceTitle "playchess.com"]
[Source "ChessBase"]
[SourceQuality "1"]
[TimeControl "40/5400+30:1800+30"]

1. e4 c5 2. Nf3 e6 3. Qe2 Nc6 4. c3 Nge7 5. d3 d5 6. Qc2 b6 7. Be2 Bb7 8. O-O Ng6 9. a3 Be7 10. b4 a6 11. bxc5 bxc5 12. exd5 exd5 13. Re1 O-O 14. Nbd2 Rc8 15. Rb1 Ba8 16. Nf1 d4 17. c4 h6 18. Bd2 Bd6 19. Bd1 Nce5 20. Nxe5 Bxe5 21. Bg4 Rb8 22. Bf5 Rxb1 23. Qxb1 Qf6 24. Be4 Bxe4 25. Rxe4 Rb8 26. Qd1 Qc6 27. Qh5 Bd6 28. f4 Re8 29. Qd5 Rc8 30. Qxc6 Rxc6 31. Re8+ Kh7 32. g3 Rb6 33. Ra8 Rb3 34. Rxa6 Be7 35. Ra7 f5 36. a4 Rxd3 37. a5 Ra3 38. Rd7 Bf6 39. Rd5 d3 40. Kg2 Bd4 41. Rxf5 Ne7 42. Rf8 Nc6 43. Kf3 Nxa5 44. Ra8 Ra1 45. Rxa5 Rxf1+ 46. Ke4 Rf2 47. Kxd3 Rxh2 48. Be3 {[%emt 2:24:00]} 1/2-1/2

[Event "SRB-chT Women 1st League 2019"]
[Site "Subotica"]
[Date "2019.08.23"]
[Round "2"]
[White "Hejazipour, Mitra"]
[Black "Gaponenko, Inna"]
[Result "1/2-1/2"]
[ECO "B08"]
[WhiteElo "2251"]
[BlackElo "2446"]
[Annotator "NA"]
[PlyCount "67"]
[EventDate "2019.08.23"]
[EventType "team-tourn"]
[EventCountry "SRB"]
[SourceTitle "playchess.com"]
[Source "ChessBase"]
[SourceQuality "1"]
[TimeControl "40/5400+30:1800+30"]

1. e4 {[%emt 0:00:30]} d6 {[%emt 0:02:30]} 2. d4 {[%emt 0:00:00]} Nf6 {[%emt 0:00:30]} 3. Nc3 {[%emt 0:00:00]} g6 {[%emt 0:00:30]} 4. Nf3 {[%emt 0:00:30]} Bg7 {[%emt 0:00:30]} 5. Be2 {[%emt 0:00:30]} O-O {[%emt 0:02:30]} 6. O-O {[%emt 0:00:30]} c6 {[%emt 0:06:30]} 7. a4 {[%emt 0:00:30]} Qc7 {[%emt 0:02:30]} 8. Be3 {[%emt 0:06:30]} e5 {[%emt 0:05:30]} 9. dxe5 {[%emt 0:01:30]} dxe5 {[%emt 0:00:00]} 10. Qc1 {[%emt 0:01:30]} Nh5 {[%emt 0:18:00]} 11. Bc5 {[%emt 0:17:30]} Rd8 {[%emt 0:08:30]} 12. Rd1 {[%emt 0:14:30]} b6 {[%emt 0:04:30]} 13. Ba3 {[%emt 0:01:30]} Nf4 {[%emt 0:09:30]} 14. Rxd8+ {[%emt 0:02:30]} Qxd8 {[%emt 0:01:30]} 15. Qd1 {[%emt 0:01:30]} Qxd1+ {[%emt 0:08:30]} 16. Rxd1 {[%emt 0:01:30]} Nxe2+ {[%emt 0:00:30]} 17. Nxe2 {[%emt 0:00:00]} Nd7 {[%emt 0:00:00]} 18. Rd6 {[%emt 0:08:00]} Bf8 {[%emt 0:13:11]} 19. Rxc6 {[%emt 0:00:30]} Bxa3 {[%emt 0:00:07]} 20. bxa3 {[%emt 0:00:30]} Ba6 {[%emt 0:00:00]} 21. Nc3 {[%emt 0:02:30]} Rc8 {[%emt 0:00:43]} 22. Rxc8+ {[%emt 0:19:29]} Bxc8 {[%emt 0:00:33]} 23. Nb5 {[%emt 0:00:10]} Bb7 {[%emt 0:00:43]} 24. Nd2 {[%emt 0:00:30]} a6 {[%emt 0:00:34]} 25. Nd6 {[%emt 0:00:30]} Bc6 {[%emt 0:00:39]} 26. a5 {[%emt 0:00:30]} bxa5 {[%emt 0:00:37]} 27. N2c4 {[%emt 0:00:30]} a4 {[%emt 0:00:40]} 28. f3 {[%emt 0:00:30]} Kf8 {[%emt 0:01:36]} 29. Na5 {[%emt 0:01:22]} Ba8 {[%emt 0:06:17]} 30. Kf2 {[%emt 0:03:35]} Ke7 {[%emt 0:00:10]} 31. Ndc4 {[%emt 0:00:18]} f5 {[%emt 0:03:24]} 32. Ke3 {[%emt 0:02:38]} Ke6 {[%emt 0:00:26]} 33. Nd2 {[%emt 0:02:50]} Nc5 {[%emt 0:01:08]} 34. g3 {[%emt 0:00:59]} 1/2-1/2

[Event "SRB-chT Women 1st League 2019"]
[Site "Subotica"]
[Date "2019.08.23"]
[Round "2"]
[White "Injac, Teodora"]
[Black "Dimitrijevic, Aleksandra"]
[Result "1/2-1/2"]
[ECO "B28"]
[WhiteElo "2223"]
[BlackElo "2142"]
[Annotator "NA"]
[PlyCount "59"]
[EventDate "2019.08.23"]
[EventType "team-tourn"]
[EventCountry "SRB"]
[SourceTitle "playchess.com"]
[Source "ChessBase"]
[SourceQuality "1"]
[TimeControl "40/5400+30:1800+30"]

1. d4 {[%emt 0:00:30]} d6 {[%emt 0:00:30]} 2. Nf3 {[%emt 0:00:30]} Nf6 {[%emt 0:00:30]} 3. c4 {[%emt 0:00:30]} c5 {[%emt 0:00:30]} 4. Nc3 {[%emt 0:00:30]} cxd4 {[%emt 0:00:30]} 5. Nxd4 {[%emt 0:00:30]} Nc6 {[%emt 0:00:30]} 6. e4 {[%emt 0:16:30]} e6 {[%emt 0:19:30]} 7. Be2 {[%emt 0:08:30]} Be7 {[%emt 0:00:30]} 8. O-O {[%emt 0:00:30]} a6 {[%emt 0:00:30]} 9. Be3 {[%emt 0:00:30]} Qc7 {[%emt 0:02:30]} 10. Nb3 {[%emt 0:18:30]} O-O {[%emt 0:00:30]} 11. Rc1 {[%emt 0:00:30]} Nd7 {[%emt 0:00:30]} 12. Nd5 {[%emt 0:00:30]} exd5 {[%emt 0:00:30]} 13. cxd5 {[%emt 0:11:30]} Nf6 {[%emt 0:25:30]} 14. Bf3 {[%emt 0:05:30]} Bd7 {[%emt 0:01:30]} 15. Nd4 {[%emt 0:01:30]} Rac8 {[%emt 0:10:30]} 16. dxc6 {[%emt 0:01:30]} bxc6 {[%emt 0:00:30]} 17. e5 {[%emt 0:03:30]} dxe5 {[%emt 0:00:30]} 18. Nxc6 {[%emt 0:00:30]} Bxc6 {[%emt 0:00:30]} 19. Rxc6 {[%emt 0:05:30]} Qa5 {[%emt 0:02:30]} 20. Qb3 {[%emt 0:02:45]} e4 {[%emt 0:00:30]} 21. Rxc8 {[%emt 0:00:32]} Rxc8 {[%emt 0:00:30]} 22. Qb7 {[%emt 0:05:29]} Re8 {[%emt 0:00:30]} 23. Be2 {[%emt 0:02:33]} Qxa2 {[%emt 0:03:30]} 24. Rc1 {[%emt 0:03:26]} Qd5 {[%emt 0:05:30]} 25. Qxa6 {[%emt 0:00:21]} h5 {[%emt 0:04:20]} 26. Qc4 {[%emt 0:05:42]} Qe5 {[%emt 0:03:09]} 27. Bd4 {[%emt 0:00:40]} Qg5 {[%emt 0:00:54]} 28. Be3 {[%emt 0:00:23]} Qe5 {[%emt 0:00:08]} 29. Bd4 {[%emt 0:00:03]} Qg5 {[%emt 0:00:02]} 30. Be3 {[%emt 0:02:57]} 1/2-1/2

[Event "SRB-chT Women 1st League 2019"]
[Site "Subotica"]
[Date "2019.08.23"]
[Round "2"]
[White "Petronic, Sanja"]
[Black "Tadic, Katarina"]
[Result "1-0"]
[ECO "B28"]
[WhiteElo "2205"]
[BlackElo "2020"]
[Annotator "NA"]
[PlyCount "87"]
[EventDate "2019.08.23"]
[EventType "team-tourn"]
[EventCountry "SRB"]
[SourceTitle "playchess.com"]
[Source "ChessBase"]
[SourceQuality "1"]
[TimeControl "40/5400+30:1800+30"]

1. e4 {[%emt 0:00:30]} c5 {[%emt 0:00:30]} 2. Nf3 {[%emt 0:01:30]} a6 {[%emt 0:00:30]} 3. c3 {[%emt 0:00:30]} d5 {[%emt 0:00:30]} 4. exd5 {[%emt 0:00:30]} Nf6 {[%emt 0:00:30]} 5. d4 {[%emt 0:02:30]} cxd4 {[%emt 0:03:30]} 6. Qa4+ {[%emt 0:09:30]} Nbd7 {[%emt 0:12:30]} 7. Qxd4 {[%emt 0:01:30]} b5 {[%emt 0:19:30]} 8. Be3 {[%emt 0:15:30]} Bb7 {[%emt 0:09:30]} 9. c4 {[%emt 0:03:30]} Qa5+ {[%emt 0:26:30]} 10. Bd2 {[%emt 0:07:30]} Qb6 {[%emt 0:01:30]} 11. cxb5 {[%emt 0:04:30]} Qxd4 {[%emt 0:01:38]} 12. Nxd4 {[%emt 0:00:00]} Nxd5 {[%emt 0:00:09]} 13. bxa6 {[%emt 0:03:00]} Bxa6 {[%emt 0:00:05]} 14. Bxa6 {[%emt 0:03:30]} Rxa6 {[%emt 0:00:08]} 15. Nc3 {[%emt 0:03:30]} N7f6 {[%emt 0:06:17]} 16. Nxd5 {[%emt 0:01:30]} Nxd5 {[%emt 0:00:06]} 17. Ke2 {[%emt 0:02:30]} g6 {[%emt 0:01:08]} 18. Rhc1 {[%emt 0:04:30]} Bg7 {[%emt 0:00:28]} 19. Rc8+ {[%emt 0:00:30]} Kd7 {[%emt 0:00:05]} 20. Rxh8 {[%emt 0:00:30]} Bxh8 {[%emt 0:00:05]} 21. Bc3 {[%emt 0:02:30]} Nf4+ {[%emt 0:06:26]} 22. Kf3 {[%emt 0:03:30]} Nd5 {[%emt 0:00:14]} 23. Nb3 {[%emt 0:06:30]} Ra8 {[%emt 0:02:53]} 24. Bxh8 {[%emt 0:00:30]} Rxh8 {[%emt 0:00:05]} 25. Ke4 {[%emt 0:04:24]} e6 {[%emt 0:00:40]} 26. f4 {[%emt 0:03:17]} Rb8 {[%emt 0:00:14]} 27. g3 {[%emt 0:00:58]} Nb4 {[%emt 0:01:58]} 28. Rd1+ {[%emt 0:05:58]} Ke7 {[%emt 0:00:09]} 29. Nd4 {[%emt 0:02:03]} f5+ {[%emt 0:01:03]} 30. Kf3 {[%emt 0:00:17]} Kf6 {[%emt 0:00:42]} 31. a3 {[%emt 0:01:43]} Nd5 {[%emt 0:00:14]} 32. b4 {[%emt 0:00:22]} Nc3 {[%emt 0:01:24]} 33. Rd3 {[%emt 0:01:13]} Ne4 {[%emt 0:00:11]} 34. Nc6 {[%emt 0:01:04]} Rb7 {[%emt 0:01:50]} 35. a4 {[%emt 0:01:32]} g5 {[%emt 0:00:38]} 36. a5 {[%emt 0:00:59]} Rc7 {[%emt 0:00:30]} 37. b5 {[%emt 0:00:53]} g4+ {[%emt 0:00:43]} 38. Ke3 {[%emt 0:00:07]} Nc5 {[%emt 0:00:08]} 39. Rc3 {[%emt 0:01:09]} Ne4 {[%emt 0:01:47]} 40. Rc2 {[%emt 0:00:00]} Rd7 {[%emt 0:00:00]} 41. a6 {[%emt 0:06:31]} Rd1 {[%emt 0:04:32]} 42. a7 {[%emt 0:00:30]} Ra1 {[%emt 0:00:30]} 43. b6 {[%emt 0:00:30]} Ra3+ {[%emt 0:00:30]} 44. Ke2 1-0

[Event "SRB-chT Women 1st League 2019"]
[Site "Subotica"]
[Date "2019.08.23"]
[Round "2"]
[White "Blagojevic, Tijana"]
[Black "Srdanovic, Jovana"]
[Result "1/2-1/2"]
[ECO "B44"]
[WhiteElo "2155"]
[BlackElo "2005"]
[Annotator "NA"]
[PlyCount "57"]
[EventDate "2019.08.23"]
[EventType "team-tourn"]
[EventCountry "SRB"]
[SourceTitle "playchess.com"]
[Source "ChessBase"]
[SourceQuality "1"]
[TimeControl "40/5400+30:1800+30"]

1. e4 {[%emt 0:00:30]} c5 {[%emt 0:00:30]} 2. Nf3 {[%emt 0:00:00]} e6 {[%emt 0:00:00]} 3. d4 {[%emt 0:00:00]} cxd4 {[%emt 0:00:00]} 4. Nxd4 {[%emt 0:00:00]} Nc6 {[%emt 0:00:00]} 5. c4 {[%emt 0:03:00]} Nf6 {[%emt 0:01:00]} 6. Nc3 {[%emt 0:00:00]} Bb4 {[%emt 0:00:00]} 7. Nxc6 {[%emt 0:00:00]} bxc6 {[%emt 0:00:00]} 8. Bd3 {[%emt 0:00:30]} e5 {[%emt 0:00:00]} 9. O-O {[%emt 0:00:30]} Bc5 {[%emt 0:00:00]} 10. Qe2 {[%emt 0:01:30]} d6 {[%emt 0:00:30]} 11. Be3 {[%emt 0:03:30]} Nd7 {[%emt 0:00:30]} 12. Na4 {[%emt 0:00:30]} Bxe3 {[%emt 0:00:00]} 13. Qxe3 {[%emt 0:00:30]} Qa5 {[%emt 0:00:00]} 14. Bc2 {[%emt 0:06:30]} Nc5 {[%emt 0:00:30]} 15. Nxc5 {[%emt 0:06:30]} Qxc5 {[%emt 0:00:30]} 16. Qxc5 {[%emt 0:11:30]} dxc5 {[%emt 0:00:00]} 17. Ba4 {[%emt 0:14:30]} Bd7 {[%emt 0:00:00]} 18. Rfd1 {[%emt 0:01:30]} Ke7 {[%emt 0:00:30]} 19. Rd2 {[%emt 0:07:30]} Rhb8 {[%emt 0:01:30]} 20. Rad1 {[%emt 0:00:30]} Be8 {[%emt 0:00:00]} 21. g3 {[%emt 0:03:30]} Rb4 {[%emt 0:20:00]} 22. b3 {[%emt 0:00:30]} Rbb8 {[%emt 0:00:30]} 23. f3 {[%emt 0:06:30]} f6 {[%emt 0:15:30]} 24. Kf2 {[%emt 0:00:30]} Rd8 {[%emt 0:02:30]} 25. Rxd8 {[%emt 0:05:30]} Rxd8 {[%emt 0:00:30]} 26. Rxd8 {[%emt 0:02:30]} Kxd8 {[%emt 0:00:00]} 27. Ke3 {[%emt 0:00:30]} Kc7 {[%emt 0:01:00]} 28. Kd3 {[%emt 0:05:30]} a5 {[%emt 0:02:30]} 29. a3 {[%emt 0:00:35]} 1/2-1/2

[Event "SRB-chT Women 1st League 2019"]
[Site "Subotica"]
[Date "2019.08.23"]
[Round "2"]
[White "Maksimovic, Suzana"]
[Black "Velikic, Adela"]
[Result "0-1"]
[ECO "A29"]
[WhiteElo "2150"]
[BlackElo "2252"]
[Annotator "NA"]
[PlyCount "64"]
[EventDate "2019.08.23"]
[EventType "team-tourn"]
[EventCountry "SRB"]
[SourceTitle "playchess.com"]
[Source "ChessBase"]
[SourceQuality "1"]
[TimeControl "40/5400+30:1800+30"]

1. c4 {[%emt 0:00:30]} e5 {[%emt 0:00:30]} 2. Nc3 {[%emt 0:00:00]} Nf6 {[%emt 0:00:00]} 3. g3 {[%emt 0:04:00]} d5 {[%emt 0:04:00]} 4. cxd5 {[%emt 0:00:00]} Nxd5 {[%emt 0:00:30]} 5. Bg2 {[%emt 0:00:00]} Nb6 {[%emt 0:00:30]} 6. Nf3 {[%emt 0:05:30]} Nc6 {[%emt 0:00:30]} 7. O-O {[%emt 0:00:30]} Be7 {[%emt 0:00:30]} 8. d3 {[%emt 0:04:30]} O-O {[%emt 0:02:30]} 9. Bd2 {[%emt 0:10:30]} Be6 {[%emt 0:03:30]} 10. Qb1 {[%emt 0:05:30]} a5 {[%emt 0:19:30]} 11. Rc1 {[%emt 0:10:30]} f5 {[%emt 0:04:30]} 12. Rd1 {[%emt 0:01:30]} Bf6 {[%emt 0:04:30]} 13. Qc2 {[%emt 0:15:30]} g5 {[%emt 0:09:30]} 14. Qc1 {[%emt 0:07:30]} g4 {[%emt 0:07:30]} 15. Ne1 {[%emt 0:00:30]} a4 {[%emt 0:06:30]} 16. e4 {[%emt 0:04:30]} f4 {[%emt 0:08:30]} 17. gxf4 {[%emt 0:01:30]} exf4 {[%emt 0:00:30]} 18. Bxf4 {[%emt 0:00:30]} a3 {[%emt 0:01:30]} 19. e5 {[%emt 0:14:23]} Bh4 {[%emt 0:14:31]} 20. Qe3 {[%emt 0:05:51]} axb2 {[%emt 0:05:57]} 21. Rab1 {[%emt 0:00:05]} Ra3 {[%emt 0:01:51]} 22. Ne4 {[%emt 0:02:51]} Nd5 {[%emt 0:00:53]} 23. Nf6+ {[%emt 0:00:14]} Nxf6 {[%emt 0:01:05]} 24. exf6 {[%emt 0:00:06]} Qxf6 {[%emt 0:00:14]} 25. Bxc6 {[%emt 0:02:54]} bxc6 {[%emt 0:00:47]} 26. Rxb2 {[%emt 0:02:20]} Bd5 {[%emt 0:01:09]} 27. Be5 {[%emt 0:00:20]} Qf5 {[%emt 0:00:53]} 28. Ng2 {[%emt 0:01:15]} Bg5 {[%emt 0:00:41]} 29. Qg3 {[%emt 0:00:27]} h5 {[%emt 0:00:42]} 30. Ne3 {[%emt 0:00:25]} Rxd3 {[%emt 0:00:36]} 31. Rbd2 {[%emt 0:00:45]} Rxe3 {[%emt 0:00:30]} 32. fxe3 {[%emt 0:00:16]} h4 {[%emt 0:00:14]} 0-1

[Event "SRB-chT Women 1st League 2019"]
[Site "Subotica"]
[Date "2019.08.23"]
[Round "2"]
[White "Marcetic, Marija"]
[Black "Manakova, Maria"]
[Result "0-1"]
[ECO "B33"]
[WhiteElo "2133"]
[BlackElo "2237"]
[Annotator "NA"]
[PlyCount "86"]
[EventDate "2019.08.23"]
[EventType "team-tourn"]
[EventCountry "SRB"]
[SourceTitle "playchess.com"]
[Source "ChessBase"]
[SourceQuality "1"]
[TimeControl "40/5400+30:1800+30"]

1. e4 {[%emt 1:30:30]} c5 {[%emt 1:30:30]} 2. Nf3 {[%emt 0:00:30]} Nc6 {[%emt 0:00:30]} 3. d4 {[%emt 0:00:30]} cxd4 {[%emt 0:00:30]} 4. Nxd4 {[%emt 0:00:30]} Nf6 {[%emt 0:00:30]} 5. Nc3 {[%emt 0:00:30]} e5 {[%emt 0:00:30]} 6. Ndb5 {[%emt 0:00:30]} d6 {[%emt 0:00:30]} 7. Bg5 {[%emt 0:00:30]} a6 {[%emt 0:00:30]} 8. Na3 {[%emt 0:00:30]} b5 {[%emt 0:00:30]} 9. Nd5 {[%emt 0:00:30]} Be7 {[%emt 0:00:30]} 10. Bxf6 {[%emt 0:00:30]} Bxf6 {[%emt 0:00:30]} 11. c3 {[%emt 0:00:30]} O-O {[%emt 0:00:30]} 12. Nc2 {[%emt 0:00:30]} Bg5 {[%emt 0:00:30]} 13. h4 {[%emt 0:00:30]} Bh6 {[%emt 0:00:30]} 14. g3 {[%emt 0:00:30]} Rb8 {[%emt 0:00:30]} 15. Bh3 {[%emt 0:00:30]} Be6 {[%emt 0:00:30]} 16. Bxe6 {[%emt 0:00:30]} fxe6 {[%emt 0:00:30]} 17. Ndb4 {[%emt 0:00:30]} Na5 {[%emt 0:00:30]} 18. O-O {[%emt 0:00:30]} Qb6 {[%emt 0:00:30]} 19. a4 {[%emt 0:00:30]} Nb3 {[%emt 0:00:30]} 20. Ra3 {[%emt 0:00:30]} Nd2 {[%emt 0:00:30]} 21. axb5 {[%emt 0:00:30]} Nxf1 {[%emt 0:00:30]} 22. Qxf1 {[%emt 0:00:30]} axb5 {[%emt 0:00:30]} 23. Ra6 {[%emt 0:00:30]} Qc7 {[%emt 0:00:30]} 24. Rc6 {[%emt 0:00:30]} Qd7 {[%emt 0:00:30]} 25. Qd3 {[%emt 0:00:30]} Qa7 {[%emt 0:00:30]} 26. Qe2 {[%emt 0:00:30]} Rb6 {[%emt 0:00:30]} 27. Kg2 {[%emt 0:00:30]} Rxc6 {[%emt 0:00:30]} 28. Nxc6 {[%emt 0:00:30]} Qc5 {[%emt 0:00:30]} 29. N2b4 {[%emt 0:00:30]} g6 {[%emt 0:00:30]} 30. h5 {[%emt 0:00:30]} gxh5 {[%emt 0:00:30]} 31. Ne7+ {[%emt 0:00:30]} Kh8 {[%emt 0:00:30]} 32. Nd3 {[%emt 0:00:30]} Qc4 {[%emt 0:00:30]} 33. b3 {[%emt 0:00:30]} Qc7 {[%emt 0:00:30]} 34. Qxh5 {[%emt 0:00:30]} Qxe7 {[%emt 0:00:30]} 35. Qxh6 {[%emt 0:00:30]} Rc8 {[%emt 0:00:30]} 36. Qh5 {[%emt 0:00:30]} Qf8 {[%emt 0:00:30]} 37. b4 {[%emt 0:00:30]} Qe8 {[%emt 0:00:30]} 38. Qg5 {[%emt 0:00:30]} Qg6 {[%emt 0:00:30]} 39. Qh4 {[%emt 0:00:30]} h6 {[%emt 0:00:30]} 40. f3 {[%emt 0:00:30]} Qg5 {[%emt 0:00:30]} 41. Qh3 {[%emt 0:30:30]} Rxc3 {[%emt 0:30:30]} 42. Nf2 {[%emt 0:00:30]} Qe3 {[%emt 0:00:30]} 43. f4 {[%emt 0:00:30]} Qf3+ {[%emt 0:00:30]} 0-1